bitfinex-derivatives/quotes_BTCF0:USTF0_20251219
["timestamp","ask_amount","ask_price","bid_price","bid_amount"]
[1766151578762,0.0113454,88190.0,88168.0,0.07947619]
[1766151578963,0.00576,88189.0,88169.0,0.05032113]
[1766151579165,0.0038,88188.0,88179.0,0.0113467]
[1766151579371,0.0038,88188.0,88180.0,0.03258604]
[1766151579677,0.0038,88188.0,88181.0,0.03258604]
[1766151579879,0.0038,88188.0,88182.0,0.03258604]
[1766151579880,0.00010571,88187.0,88182.0,0.03258604]
[1766151580074,0.00010571,88187.0,88183.0,0.03258604]
[1766151580277,0.00010571,88187.0,88184.0,0.03258604]
[1766151580480,0.0038,88188.0,88175.0,0.00017002]
[1766151580481,1e-08,88188.0,88185.0,0.03117158]
[1766151580683,0.00576,88187.0,88175.0,0.00017002]
[1766151580879,0.00576,88186.0,88181.0,0.0113464]
[1766151581074,0.00576,88185.0,88182.0,0.03117095]
[1766151581381,0.00576,88184.0,88183.0,0.03117095]
[1766151581882,0.00017002,88193.0,88183.0,0.03117095]
[1766151582180,0.00576,88192.0,88180.0,0.0113466]
[1766151582381,0.00576,88192.0,88181.0,0.03061813]
[1766151582574,0.00576,88192.0,88180.0,0.0113466]
[1766151582776,0.00576,88192.0,88181.0,0.03061813]
[1766151582983,0.00576,88192.0,88182.0,0.0306181]
[1766151583279,0.00576,88192.0,88180.0,0.0113466]
[1766151583480,0.00576,88192.0,88181.0,0.03062363]
[1766151583679,0.00576,88192.0,88182.0,0.03062363]
[1766151583982,0.00576,88192.0,88179.0,0.0113467]
[1766151584182,0.00576,88192.0,88180.0,0.03062306]
[1766151584380,0.0113454,88190.0,88181.0,0.03062306]
[1766151584580,0.0113454,88190.0,88182.0,0.03062306]
[1766151584783,0.00576,88192.0,88177.0,0.0113469]
[1766151585081,0.00576,88191.0,88178.0,0.03062866]
[1766151585280,0.00576,88191.0,88179.0,0.03062866]
[1766151585583,0.00576,88191.0,88180.0,0.03062866]
[1766151585780,0.00576,88191.0,88181.0,0.03062866]
[1766151585979,0.00576,88191.0,88182.0,0.03062866]
[1766151586172,0.00576,88191.0,88183.0,0.03062866]
[1766151586373,0.00576,88191.0,88184.0,0.03062866]
[1766151586572,0.00576,88191.0,88177.0,0.0113469]
[1766151586885,0.0113453,88190.0,88178.0,0.03064144]
[1766151587078,0.0113453,88190.0,88179.0,0.03064144]
[1766151587280,0.0113453,88190.0,88180.0,0.03064144]
[1766151587480,0.0113453,88190.0,88181.0,0.03064144]
[1766151587682,0.0113453,88190.0,88182.0,0.03064144]
[1766151587881,0.0113453,88190.0,88183.0,0.03064144]
[1766151588181,0.00576,88189.0,88184.0,0.03025732]
[1766151588486,0.00576,88189.0,88176.0,0.0113471]
[1766151588781,0.00576,88189.0,88178.0,0.0113469]
[1766151588984,0.00576,88189.0,88179.0,0.03025747]
[1766151589179,0.00576,88189.0,88180.0,0.03025747]
[1766151589375,0.00576,88189.0,88181.0,7e-08]
[1766151589574,0.00576,88189.0,88175.0,0.00017002]
[1766151590582,0.0171056,88189.0,88175.0,0.01151722]
[1766151590887,0.00576,88189.0,88179.0,0.0113467]
[1766151592987,0.00576,88189.0,88175.0,0.00017002]
[1766151593185,0.011346,88186.0,88175.0,0.00017002]
[1766151594281,0.0171056,88189.0,88175.0,0.01151732]
[1766151594482,0.00576,88189.0,88175.0,0.00017002]
[1766151594692,0.00576,88189.0,88175.0,2e-08]
[1766151595181,0.0113466,88181.0,88175.0,2e-08]
[1766151595386,0.00576,88180.0,88175.0,2e-08]
[1766151596092,0.00576,88180.0,88161.0,0.011349]
[1766151596481,0.00352,88179.0,88153.0,0.0113501]
[1766151596687,0.0113463,88183.0,88168.0,0.0113481]
[1766151596880,0.0113449,88194.0,88167.0,0.00017013]
[1766151596881,0.00116,88182.0,88167.0,0.00017013]
[1766151598388,0.00116,88182.0,88148.0,0.05188206]
[1766151598589,0.00116,88182.0,88144.0,0.0133112]
[1766151598590,0.0113481,88169.0,88155.0,0.0113497]
[1766151598786,0.0004,88168.0,88155.0,0.0113497]
[1766151599594,0.0004,88168.0,88153.0,0.01152013]
[1766151599999,0.0004,88168.0,88147.0,0.00014558]
[1766151600191,2.38332,88167.0,88147.0,0.00014558]
[1766151600379,0.0113488,88164.0,88147.0,8e-08]
[1766151600584,2.38332,88167.0,88147.0,8e-08]
[1766151601087,0.0113486,88165.0,88147.0,8e-08]
[1766151601289,0.0113513,88144.0,88116.0,0.04053136]
[1766151601490,0.00017013,88139.0,88134.0,0.0113525]
[1766151601686,0.01135,88154.0,88138.0,0.0113519]
[1766151601882,2.3946683,88167.0,88138.0,0.0113519]
[1766151601883,0.0113498,88156.0,88138.0,0.0113519]
[1766151602189,0.00014311,88155.0,88129.0,0.3399648]
[1766151602392,1e-08,88155.0,88150.0,0.0113504]
[1766151602581,0.00384,88154.0,88147.0,0.0113508]
[1766151602786,0.00384,88154.0,88144.0,0.00017013]
[1766151603187,0.00576,88153.0,88144.0,0.00017013]
[1766151603393,0.0113503,88152.0,88134.0,0.0113525]
[1766151603898,0.0113503,88152.0,88136.0,0.0113522]
[1766151604198,0.00576,88153.0,88130.0,0.3399648]
[1766151604898,0.00576,88153.0,88139.0,0.0113518]
[1766151605697,0.00576,88153.0,88141.0,0.0113516]
[1766151605895,0.00576,88153.0,88145.0,0.0113511]
[1766151606200,0.00576,88153.0,88148.0,0.0113506]
[1766151606892,0.00576,88153.0,88130.0,0.3399648]
[1766151607194,0.00576,88153.0,88139.0,0.0113519]
[1766151607393,0.0171101,88153.0,88135.0,0.0113524]
[1766151607692,0.00576,88153.0,88141.0,0.0113516]
[1766151608096,0.00576,88153.0,88142.0,0.0113514]
[1766151609797,0.00017013,88161.0,88140.0,0.3399648]
[1766151610012,3e-08,88161.0,88155.0,0.0113498]
[1766151610197,0.00192,88162.0,88157.0,0.0113495]
[1766151610500,0.00288,88162.0,88157.0,0.0113495]
[1766151610691,0.00288,88162.0,88150.0,0.3399648]
[1766151610692,0.00336,88162.0,88150.0,0.3399648]
[1766151610892,0.00336,88162.0,88154.0,0.0113499]
[1766151611092,0.00336,88162.0,88150.0,0.3399648]
[1766151611093,0.00356,88162.0,88158.0,0.0113493]
[1766151611293,0.00017013,88167.0,88158.0,0.0113493]
[1766151611603,2.384,88198.0,88171.0,0.0113477]
[1766151611901,2.38976,88197.0,88173.0,0.0113474]
[1766151612097,0.0113452,88192.0,88175.0,0.0113472]
[1766151612493,0.0113455,88190.0,88175.0,0.00017013]
[1766151613209,0.00017013,88192.0,88180.0,0.3399648]
[1766151613401,2.38396,88208.0,88190.0,0.0113452]
[1766151613588,0.00576,88207.0,88180.0,0.3399648]
[1766151613792,0.0171033,88207.0,88187.0,0.0113456]
[1766151613993,0.00576,88207.0,88183.0,0.0113461]
[1766151614396,0.00017013,88204.0,88186.0,0.00017013]
[1766151615204,0.0113438,88202.0,88186.0,0.00017013]
[1766151615905,0.01151373,88204.0,88186.0,0.00017013]
[1766151616395,0.0113439,88202.0,88186.0,0.00017013]
[1766151617511,0.0113442,88200.0,88186.0,0.00017013]
[1766151619100,0.01151373,88204.0,88186.0,0.00017013]
[1766151619302,0.0113439,88202.0,88186.0,0.00017013]
[1766151619898,0.00017013,88204.0,88190.0,0.0113453]
[1766151620202,0.00017013,88204.0,88193.0,0.0113449]
[1766151620401,0.00484,88203.0,88195.0,0.0113446]
[1766151621296,0.00484,88203.0,88197.0,0.0113443]
[1766151621497,0.00484,88203.0,88194.0,0.0113448]
[1766151621899,0.00484,88203.0,88191.0,0.0113452]
[1766151622101,0.00484,88203.0,88193.0,0.0113449]
[1766151622997,0.00484,88203.0,88186.0,0.00017013]
[1766151623203,0.0113442,88199.0,88186.0,0.00017013]
[1766151623605,0.0113438,88202.0,88186.0,0.00017013]
[1766151625207,0.00484,88203.0,88187.0,0.0113456]
[1766151626001,0.00436,88202.0,88187.0,0.0113456]
[1766151626612,0.00436,88202.0,88186.0,0.00017013]
[1766151627112,0.00436,88202.0,88187.0,0.0113456]
[1766151627410,0.00436,88202.0,88186.0,0.01151593]
[1766151627608,0.00436,88202.0,88189.0,0.0113454]
[1766151627804,0.00436,88202.0,88186.0,0.00017013]
[1766151628212,0.00436,88202.0,88188.0,0.0113455]
[1766151628609,0.00436,88202.0,88186.0,0.00017013]
[1766151628912,0.00436,88202.0,88195.0,0.0113447]
[1766151629898,0.00436,88202.0,88192.0,0.011345]
[1766151632905,0.00436,88202.0,88188.0,0.0113455]
[1766151633106,0.00436,88202.0,88186.0,0.00017013]
[1766151633415,0.00436,88202.0,88192.0,0.011345]
[1766151634206,0.00408,88201.0,88189.0,0.0113454]
[1766151634515,0.00408,88201.0,88186.0,0.00017013]
[1766151635107,0.00408,88201.0,88191.0,0.0113452]
[1766151636412,0.00408,88201.0,88188.0,0.0113455]
[1766151636612,0.00408,88201.0,88190.0,0.0113453]
[1766151637622,0.0113444,88198.0,88186.0,0.00017013]
[1766151637802,0.015424,88201.0,88186.0,0.00017013]
[1766151638119,0.015424,88201.0,88187.0,0.0113457]
[1766151638309,0.015424,88201.0,88186.0,0.00017013]
[1766151638310,0.0113442,88199.0,88186.0,0.00017013]
[1766151638512,0.00408,88201.0,88186.0,0.01151593]
[1766151638715,0.00408,88201.0,88188.0,0.0113456]
[1766151641308,0.00408,88201.0,88187.0,0.0113457]
[1766151641518,0.00408,88201.0,88190.0,0.33975599]
[1766151642710,0.00408,88201.0,88186.0,0.00017013]
[1766151642909,0.00408,88201.0,88170.0,0.0113479]
[1766151642910,0.33975599,88200.0,88180.0,0.33975599]
[1766151643306,0.0113444,88198.0,88183.0,0.0113461]
[1766151643505,0.0113444,88198.0,88180.0,0.0113465]
[1766151643712,0.0113446,88196.0,88180.0,0.35110249]
[1766151645018,0.33975599,88200.0,88179.0,0.00017013]
[1766151645215,0.00408,88201.0,88179.0,0.00017013]
[1766151645216,0.33975599,88190.0,88179.0,0.00017013]
[1766151645513,0.00408,88201.0,88179.0,0.00017013]
[1766151645514,0.00572,88189.0,88179.0,0.00017013]
[1766151645714,0.0113456,88188.0,88179.0,0.00017013]
[1766151645914,0.00572,88189.0,88179.0,0.00017013]
[1766151646419,0.00572,88188.0,88179.0,1.3e-07]
[1766151651521,0.011344,88201.0,88185.0,0.0113459]
[1766151651718,0.0113442,88199.0,88181.0,0.0113464]
[1766151652024,0.0113446,88196.0,88181.0,0.0113464]
[1766151652232,0.0113459,88186.0,88179.0,1.3e-07]
[1766151652434,0.00572,88185.0,88179.0,1.3e-07]
[1766151653028,0.00572,88185.0,88153.0,0.04053136]
[1766151653326,0.0113482,88168.0,88148.0,0.0113507]
[1766151653635,0.0113484,88166.0,88148.0,0.0113507]
[1766151653830,0.00188,88167.0,88141.0,0.00572]
[1766151654131,0.0113464,88182.0,88162.0,0.0113489]
[1766151654337,0.02491946,88181.0,88164.0,0.0113486]
[1766151654631,0.02431946,88180.0,88165.0,0.0113485]
[1766151655332,0.0113472,88176.0,88164.0,0.00017013]
[1766151655727,0.00572,88175.0,88164.0,0.00017013]
[1766151656134,0.00572,88175.0,88154.0,0.0113499]
[1766151656330,0.0113479,88170.0,88148.0,0.00372]
[1766151656634,0.0113479,88170.0,88152.0,0.0113502]
[1766151657030,0.0113475,88173.0,88146.0,0.00372]
[1766151657329,0.0113475,88173.0,88156.0,0.0113496]
[1766151657534,0.00572,88175.0,88159.0,0.0113493]
[1766151658131,0.00572,88175.0,88151.0,0.00017013]
[1766151658524,0.00572,88175.0,88158.0,0.0113494]
[1766151659332,0.0113475,88174.0,88137.0,0.00564]
[1766151659536,0.49880491,88170.0,88142.0,0.0113514]
[1766151659830,0.51015281,88170.0,88132.0,0.0113528]
[1766151660027,0.49880491,88160.0,88121.0,2.3836]
[1766151660224,0.00017013,88149.0,88122.0,0.00076]
[1766151660431,0.00572,88148.0,88122.0,0.00076]
[1766151661325,0.00572,88148.0,88135.0,0.0113523]
[1766151661730,0.00572,88148.0,88132.0,0.0113528]
[1766151661927,0.00572,88148.0,88134.0,0.0113525]
[1766151662328,0.00572,88148.0,88131.0,0.0113529]
[1766151662935,0.0170708,88148.0,88131.0,0.0113529]
[1766151663934,0.0113511,88146.0,88131.0,0.0113529]
[1766151664625,0.00572,88148.0,88131.0,0.0113529]
[1766151664837,0.0113509,88147.0,88131.0,0.0113529]
[1766151665640,0.00572,88148.0,88122.0,0.00076]
[1766151665832,0.00572,88148.0,88123.0,0.011354]
[1766151666441,0.00572,88148.0,88134.0,0.0113525]
[1766151666741,0.00572,88148.0,88137.0,0.0113521]
[1766151668851,0.0170708,88148.0,88132.0,0.0113527]
[1766151669050,0.00572,88148.0,88134.0,0.0113525]
[1766151669250,0.00572,88148.0,88136.0,0.0113522]
[1766151669954,0.0170708,88148.0,88122.0,0.00076]
[1766151670150,0.0170708,88148.0,88123.0,0.00572]
[1766151670151,0.00572,88148.0,88123.0,0.00572]
[1766151670450,0.0113516,88142.0,88123.0,0.0170739]
[1766151671342,0.0113516,88142.0,88123.0,0.0113539]
[1766151671745,0.0113516,88142.0,88126.0,0.0113536]
[1766151672143,0.0113512,88145.0,88126.0,0.0113536]
[1766151673049,0.00572,88148.0,88131.0,0.0113529]
[1766151673255,0.00572,88148.0,88118.0,0.00572]
[1766151673450,0.00572,88148.0,88120.0,0.3402577]
[1766151673655,0.0113515,88143.0,88126.0,0.0113535]
[1766151674047,0.011351,88146.0,88126.0,0.0113535]
[1766151674446,0.00572,88148.0,88122.0,0.0113541]
[1766151674655,0.00572,88148.0,88117.0,0.00556]
[1766151675156,0.0113518,88141.0,88121.0,0.0113541]
[1766151675361,0.0113522,88137.0,88118.0,0.0113546]
[1766151675551,0.0056,88136.0,88103.0,7.945e-05]
[1766151675751,0.00017013,88128.0,88104.0,0.00572]
[1766151675955,0.00184,88127.0,88104.0,0.00572]
[1766151676964,0.3402577,88120.0,88103.0,7.945e-05]
[1766151677264,0.011354,88123.0,88106.0,0.0113561]
[1766151677769,0.00184,88127.0,88103.0,7.945e-05]
[1766151678068,0.0113538,88125.0,88105.0,0.0113562]
[1766151678263,0.0113541,88122.0,88104.0,0.0113564]
[1766151678462,0.0113541,88122.0,88103.0,7.945e-05]
[1766151678463,0.0113538,88125.0,88107.0,0.011356]
[1766151679471,0.0113541,88123.0,88107.0,0.011356]
[1766151679763,0.0113541,88123.0,88103.0,7.945e-05]
[1766151679764,0.0113552,88114.0,88103.0,7.945e-05]
[1766151679960,0.0170752,88114.0,88098.0,0.00227021]
[1766151680163,0.00572,88114.0,88098.0,0.00227021]
[1766151680361,0.00572,88114.0,88104.0,0.0113564]
[1766151680561,0.0170752,88114.0,88098.0,0.00227021]
[1766151680757,0.00572,88114.0,88098.0,0.00227021]
[1766151680964,0.00011687,88113.0,88098.0,0.00227021]
[1766151681166,0.0113554,88112.0,88098.0,0.00227021]
[1766151681570,0.0113558,88109.0,88090.0,0.0113582]
[1766151681873,0.0113564,88105.0,88089.0,0.0113583]
[1766151682074,0.00572,88104.0,88089.0,0.0113583]
[1766151682568,0.00572,88104.0,88091.0,0.011358]
[1766151683173,0.00572,88104.0,88095.0,0.0113576]
[1766151683569,0.00572,88104.0,88092.0,0.0113579]
[1766151683768,0.00572,88104.0,88091.0,0.011358]
[1766151683969,0.00572,88104.0,88093.0,0.0113577]
[1766151684570,0.00572,88104.0,88089.0,0.0113582]
[1766151684872,0.0113568,88102.0,88084.0,0.011359]
[1766151685173,0.00572,88104.0,88067.0,2.38492]
[1766151685174,0.011357,88100.0,88067.0,2.38492]
[1766151685358,0.011357,88100.0,88080.0,0.0113595]
[1766151685559,0.0170765,88104.0,88083.0,0.0113591]
[1766151685762,0.0113568,88102.0,88083.0,0.0113591]
[1766151686372,0.3402577,88100.0,88065.0,2.38510551]
[1766151686568,0.3402577,88100.0,88066.0,0.00572]
[1766151686774,0.0113576,88095.0,88077.0,0.0113599]
[1766151686974,0.00572,88094.0,88077.0,0.0113599]
[1766151687269,0.00572,88094.0,88079.0,0.0113595]
[1766151688574,0.0170778,88094.0,88075.0,0.0113601]
[1766151688970,0.00572,88094.0,88071.0,0.0113606]
[1766151689180,0.0113585,88088.0,88071.0,0.0113606]
[1766151689371,9.283e-05,88093.0,88071.0,0.0113606]
[1766151689572,0.0113585,88089.0,88068.0,0.011361]
[1766151689964,9.283e-05,88093.0,88066.0,0.00468]
[1766151690570,0.0113587,88086.0,88066.0,0.0113613]
[1766151690770,0.00192,88085.0,88066.0,0.0113613]
[1766151690975,0.00192,88085.0,88065.0,0.00010551]
[1766151691170,0.0113595,88081.0,88065.0,0.00010551]
[1766151691763,0.0132789,88085.0,88066.0,0.0113613]
[1766151691968,0.00192,88085.0,88069.0,0.0113609]
[1766151692675,0.011359,88084.0,88066.0,0.0113613]
[1766151692878,0.0113593,88082.0,88065.0,0.00010551]
[1766151693279,0.0113593,88082.0,88065.0,0.01146691]
[1766151693579,0.00192,88085.0,88070.0,0.0113607]
[1766151693780,0.00192,88085.0,88070.0,0.0113608]
[1766151694781,0.00192,88085.0,88067.0,0.0113612]
[1766151694973,0.011359,88084.0,88065.0,0.00010551]
[1766151695276,0.011359,88084.0,88066.0,0.0113613]
[1766151695682,0.0113593,88082.0,88066.0,0.0113613]
[1766151697174,0.0113598,88078.0,88065.0,0.00010551]
[1766151697677,0.00192,88085.0,88065.0,0.00010551]
[1766151698071,0.00192,88085.0,88065.0,0.01146691]
[1766151698275,0.00192,88085.0,88066.0,0.0113613]
[1766151698276,0.0113593,88082.0,88066.0,0.0113613]
[1766151698483,0.0113596,88080.0,88065.0,0.00010551]
[1766151699878,0.0113594,88082.0,88066.0,0.0113613]
[1766151700184,0.00192,88085.0,88065.0,0.00010551]
[1766151700573,0.00192,88085.0,88071.0,0.0113606]
[1766151701076,0.00192,88085.0,88065.0,0.00010551]
[1766151701281,0.00064,88084.0,88077.0,0.0113598]
[1766151701479,9.283e-05,88093.0,88068.0,0.011361]
[1766151701683,9.283e-05,88093.0,88079.0,0.0113596]
[1766151701870,0.0113582,88091.0,88065.0,0.00010551]
[1766151702068,0.0113582,88091.0,88074.0,0.0113602]
[1766151702270,0.00572,88090.0,88088.0,0.0113584]
[1766151702476,0.00468,88090.0,88085.0,0.0113588]
[1766151702675,0.00468,88090.0,88084.0,0.0113589]
[1766151702870,9.283e-05,88093.0,88070.0,0.0113607]
[1766151703076,9.283e-05,88093.0,88085.0,0.0113587]
[1766151703375,0.00184,88092.0,88082.0,0.0113592]
[1766151703576,0.00184,88092.0,88084.0,0.0113589]
[1766151704685,0.00276,88091.0,88084.0,0.0113589]
[1766151705182,0.00276,88091.0,88071.0,0.0113606]
[1766151705183,0.00276,88091.0,88068.0,0.1195]
[1766151705377,0.30897235,88090.0,88068.0,0.1195]
[1766151705578,0.0113593,88082.0,88068.0,0.1195]
[1766151705879,0.00572,88081.0,88068.0,0.1195]
[1766151706281,0.00572,88081.0,88068.0,0.130861]
[1766151706584,0.00572,88081.0,88070.0,0.0113607]
[1766151706786,0.00572,88081.0,88068.0,0.1195]
[1766151706787,0.00572,88080.0,88077.0,0.0113598]
[1766151707083,0.0046,88079.0,88077.0,0.0113598]
[1766151707272,0.0113581,88091.0,88073.0,0.0113603]
[1766151707476,9.283e-05,88093.0,88068.0,0.1195]
[1766151707477,0.02904262,88090.0,88068.0,0.1195]
[1766151707776,0.02500262,88089.0,88068.0,0.1195]
[1766151707975,0.02500262,88088.0,88068.0,0.1195]
[1766151708184,0.02500262,88087.0,88061.0,0.00572]
[1766151708380,0.02500262,88086.0,88066.0,0.0113613]
[1766151708581,0.0113592,88083.0,88066.0,0.0113613]
[1766151709690,0.0113588,88086.0,88068.0,0.0113609]
[1766151709993,0.02502111,88085.0,88068.0,0.0113609]
[1766151710289,0.02502111,88084.0,88068.0,0.0113609]
[1766151710479,0.02502111,88083.0,88061.0,0.00572]
[1766151710682,0.0113587,88087.0,88061.0,0.00572]
[1766151710880,0.0250421,88086.0,88061.0,0.00572]
[1766151711081,0.0250421,88085.0,88061.0,0.00572]
[1766151711281,0.0250421,88084.0,88069.0,0.0113608]
[1766151711484,0.0250421,88083.0,88069.0,0.0113608]
[1766151711682,0.0250421,88082.0,88069.0,0.0113608]
[1766151711887,0.0307621,88081.0,88069.0,0.0113608]
[1766151712091,0.02505806,88080.0,88069.0,0.0113608]
[1766151712385,0.00572,88081.0,88069.0,0.0113608]
[1766151712591,0.02505806,88080.0,88069.0,0.0113608]
[1766151712792,0.02505806,88079.0,88069.0,0.0113608]
[1766151712988,0.00572,88081.0,88069.0,0.0113608]
[1766151713187,0.02505806,88080.0,88065.0,0.01146681]
[1766151713381,0.02505806,88079.0,88065.0,0.01146681]
[1766151713995,0.02505806,88078.0,88065.0,0.01146681]
[1766151714289,0.01145073,88093.0,88071.0,0.0113606]
[1766151714290,0.00572,88077.0,88071.0,0.0113606]
[1766151714478,0.00452,88076.0,88068.0,0.011361]
[1766151714682,0.00392,88076.0,88068.0,0.011361]
[1766151715087,0.00392,88076.0,88070.0,0.0113607]
[1766151715284,0.00392,88076.0,88067.0,0.0113611]
[1766151716494,0.011359,88085.0,88070.0,0.0113607]
[1766151716686,0.02873139,88084.0,88070.0,0.0113607]
[1766151716886,0.03081139,88083.0,88070.0,0.0113607]
[1766151717083,0.02509139,88082.0,88070.0,0.0113607]
[1766151717492,9e-08,88083.0,88065.0,0.00010551]
[1766151717796,0.00104,88084.0,88077.0,0.0113599]
[1766151717990,0.00104,88084.0,88074.0,0.0113602]
[1766151718897,0.00104,88084.0,88078.0,0.0113597]
[1766151720194,9.283e-05,88093.0,88082.0,0.0113592]
[1766151720392,0.00572,88092.0,88079.0,0.0113595]
[1766151720789,0.00572,88092.0,88072.0,0.0113605]
[1766151720988,0.00572,88092.0,88082.0,0.0113592]
[1766151721687,0.00572,88092.0,88065.0,0.00010551]
[1766151721887,0.00572,88092.0,88066.0,0.00572]
[1766151722096,0.00572,88092.0,88078.0,0.0113596]
[1766151723994,0.22709535,88090.0,88065.0,0.00010551]
[1766151724197,0.0113599,88077.0,88065.0,0.00010551]
[1766151724495,0.0113602,88075.0,88065.0,0.00010551]
[1766151724796,0.00572,88077.0,88065.0,0.00010551]
[1766151724990,0.22709535,88090.0,88065.0,0.00010551]
[1766151724991,0.22709535,88090.0,88067.0,0.22709535]
[1766151725187,0.22709535,88090.0,88070.0,0.22709535]
[1766151725393,0.01145073,88093.0,88065.0,0.00010551]
[1766151725394,0.00572,88089.0,88076.0,0.01136]
[1766151727302,9.283e-05,88093.0,88065.0,0.00574551]
[1766151727500,0.00572,88092.0,88065.0,0.00574551]
[1766151728292,0.00572,88092.0,88076.0,0.0113599]
[1766151728601,0.00572,88092.0,88078.0,0.0113597]
[1766151729601,0.0247771,88091.0,88078.0,0.0113597]
[1766151729801,0.0247771,88090.0,88075.0,0.0113601]
[1766151730001,0.0247771,88089.0,88075.0,0.0113601]
[1766151730197,0.0247771,88088.0,88075.0,0.0113601]
[1766151730396,0.0247771,88087.0,88075.0,0.0113601]
[1766151730600,0.0247771,88086.0,88075.0,0.0113601]
[1766151730803,0.0247771,88085.0,88075.0,0.0113601]
[1766151731100,0.0247771,88084.0,88065.0,0.00574551]
[1766151731297,0.0247771,88084.0,88075.0,0.0113601]
[1766151731693,0.0247771,88084.0,88077.0,0.0113598]
[1766151732403,0.00572,88085.0,88077.0,0.0113598]
[1766151732801,0.02477817,88084.0,88077.0,0.0113598]
[1766151732997,0.02477817,88083.0,88077.0,0.0113598]
[1766151733207,0.00572,88085.0,88077.0,0.0113598]
[1766151733394,0.02478143,88084.0,88077.0,0.0113598]
[1766151733595,0.02478143,88083.0,88077.0,0.0113598]
[1766151733890,0.00572,88085.0,88077.0,0.0113598]
[1766151734089,0.02478146,88084.0,88079.0,0.0113596]
[1766151734300,0.02478146,88083.0,88079.0,0.0113596]
[1766151734500,0.00572,88085.0,88079.0,0.0113596]
[1766151734702,0.02478455,88084.0,88079.0,0.0113596]
[1766151734894,5e-08,88083.0,88079.0,0.0113596]
[1766151735090,0.00572,88085.0,88076.0,0.0113599]
[1766151735297,0.01145073,88093.0,88078.0,0.0113597]
[1766151735498,0.00572,88092.0,88078.0,0.0113597]
[1766151735703,0.0113581,88091.0,88076.0,0.01136]
[1766151736405,0.0113581,88091.0,88078.0,0.0113598]
[1766151736600,0.00572,88092.0,88078.0,0.0113598]
[1766151738110,0.00572,88092.0,88080.0,0.0113595]
[1766151738608,0.017078,88092.0,88080.0,0.0113595]
[1766151739103,0.017078,88092.0,88068.0,0.0113609]
[1766151739104,0.00572,88092.0,88081.0,0.0113593]
[1766151740908,0.00572,88092.0,88070.0,0.0113607]
[1766151742312,0.00572,88092.0,88080.0,0.0113595]
[1766151742512,0.00572,88092.0,88082.0,0.0113592]
[1766151742714,0.01145063,88093.0,88079.0,0.0113595]
[1766151742908,0.00572,88092.0,88079.0,0.0113595]
[1766151744414,0.0170781,88092.0,88079.0,0.0113595]
[1766151744617,0.0113582,88090.0,88066.0,0.1195]
[1766151744817,0.0113582,88090.0,88076.0,0.01136]
[1766151745017,0.00572,88092.0,88078.0,0.0113597]
[1766151745212,0.00572,88092.0,88070.0,0.28386809]
[1766151745515,0.0113577,88094.0,88080.0,0.0113594]
[1766151745715,0.00192,88093.0,88080.0,0.0113594]
[1766151745914,0.00192,88093.0,88083.0,0.0113591]
[1766151746309,0.00192,88093.0,88085.0,0.0113589]
[1766151746513,0.00192,88093.0,88086.0,0.0113586]
[1766151746713,0.06089775,88112.0,88093.0,0.0113578]
[1766151746904,0.02568054,88111.0,88094.0,0.0113576]
[1766151747104,0.02444054,88110.0,88096.0,0.0113574]
[1766151747314,0.02444054,88109.0,88096.0,0.0113574]
[1766151747518,0.02444054,88108.0,88096.0,0.0113574]
[1766151747719,0.02444054,88107.0,88096.0,0.0113574]
[1766151747921,0.02444054,88106.0,88093.0,0.00017023]
[1766151748215,0.00017023,88110.0,88093.0,0.00017023]
[1766151748421,0.02442061,88109.0,88096.0,0.0113573]
[1766151748621,0.02442061,88108.0,88096.0,0.0113573]
[1766151748916,0.02890061,88107.0,88098.0,0.0113571]
[1766151749121,0.00448,88107.0,88095.0,0.0113575]
[1766151749316,0.00448,88107.0,88096.0,0.0113573]
[1766151749824,0.00448,88107.0,88093.0,0.01152793]
[1766151750324,0.0113562,88106.0,88093.0,0.00017023]
[1766151750622,0.00448,88107.0,88093.0,0.00017023]
[1766151752219,0.0113566,88103.0,88093.0,0.00017023]
[1766151753313,0.22698652,88103.0,88075.0,0.1195]
[1766151753522,0.0113575,88096.0,88081.0,0.0113593]
[1766151753720,0.00572,88096.0,88083.0,0.0113591]
[1766151754024,0.00572,88096.0,88086.0,0.0113586]
[1766151754722,0.00452,88100.0,88086.0,0.22698652]
[1766151755021,0.00017023,88110.0,88090.0,0.22698652]
[1766151755225,0.03010781,88109.0,88090.0,0.22698652]
[1766151755526,0.00572,88109.0,88096.0,0.0113574]
[1766151756336,0.00572,88108.0,88096.0,0.0113574]
[1766151756521,0.00572,88108.0,88090.0,0.22698652]
[1766151756825,0.00017023,88110.0,88101.0,0.0113568]
[1766151757025,0.003,88115.0,88098.0,0.22698652]
[1766151757224,0.003,88115.0,88106.0,0.0113561]
[1766151758217,0.003,88115.0,88107.0,0.011356]
[1766151758625,0.003,88115.0,88104.0,0.0113563]
[1766151758823,0.003,88115.0,88106.0,0.0113561]
[1766151759128,0.00017023,88119.0,88106.0,0.0113561]
[1766151759432,0.00328,88118.0,88106.0,0.0113561]
[1766151760032,0.00328,88118.0,88108.0,0.0113558]
[1766151761928,0.00328,88118.0,88098.0,0.22698652]
[1766151762127,0.00328,88118.0,88101.0,0.0113567]
[1766151762326,0.0113548,88117.0,88100.0,0.23834332]
[1766151762535,0.0113551,88115.0,88100.0,0.23834332]
[1766151762830,0.00328,88118.0,88099.0,0.017077]
[1766151762831,0.0113554,88112.0,88099.0,0.017077]
[1766151763022,0.00328,88118.0,88099.0,0.00572]
[1766151763023,0.0113557,88110.0,88099.0,0.00572]
[1766151763223,0.0113553,88113.0,88099.0,0.00572]
[1766151763423,0.00572,88112.0,88099.0,0.00572]
[1766151763839,0.0113558,88109.0,88097.0,0.00017023]
[1766151764029,0.22698652,88107.0,88075.0,0.06120252]
[1766151764226,0.23834352,88100.0,88080.0,0.22698652]
[1766151764433,0.00572,88099.0,88080.0,0.22698652]
[1766151764636,0.00572,88099.0,88086.0,0.0113587]
[1766151764830,0.0113541,88122.0,88089.0,0.22698652]
[1766151765137,0.0113558,88109.0,88100.0,0.22698652]
[1766151765339,0.00364,88108.0,88095.0,0.0113575]
[1766151766026,0.00364,88108.0,88097.0,0.0113573]
[1766151766237,0.00364,88108.0,88094.0,0.0113576]
[1766151767232,0.00572,88112.0,88098.0,0.23834372]
[1766151767433,0.00017023,88114.0,88098.0,0.0113572]
[1766151767641,0.00017023,88114.0,88100.0,0.0113569]
[1766151767934,0.01152543,88114.0,88097.0,0.0113572]
[1766151768128,0.01152543,88114.0,88094.0,0.0113577]
[1766151768129,0.0113555,88111.0,88094.0,0.0113577]
[1766151768325,0.0113556,88111.0,88095.0,0.00572]
[1766151769229,0.0113556,88111.0,88096.0,0.0113574]
[1766151769728,0.00017023,88114.0,88082.0,0.05678]